fUSD/lending_fUSD_20250522
["ID","MTS","AMOUNT","RATE_DAILY","PERIOD"]
[361947151,1747905043467,-191.35204967,0.00032875,2]
[361947154,1747905043476,-218.24188082,0.00032875,2]
[361947157,1747905043485,-151.0,0.00032876,7]
[361947158,1747905043495,-3.32198042,0.00032876,7]
[361947161,1747905043518,-147.67801958,0.00032876,7]
[361947163,1747905043527,-420.0,0.00032876,5]
[361947164,1747905043536,-151.841398,0.00032876,7]
[361947167,1747905043546,-420.0,0.00032876,5]
[361947169,1747905043555,-140.5525411,0.00032876,5]
[361947172,1747905043589,-279.4474589,0.00032876,5]
[361947174,1747905043598,-151.0,0.00032876,7]
[361947176,1747905043607,-420.0,0.00032876,5]
[361947177,1747905043617,-420.0,0.00032876,5]
[361947179,1747905043626,-572.45,0.00032876,5]
[361947181,1747905043636,-1093.37,0.00032876,5]
[361947182,1747905043645,-463.89,0.00032876,5]
[361947184,1747905043654,-420.0,0.00032876,5]
[361947185,1747905043663,-420.0,0.00032876,5]
[361947187,1747905043673,-1126.98,0.00032876,5]
[361947189,1747905043682,-821.02,0.00032876,5]
[361947190,1747905043691,-599.23,0.00032876,5]
[361947192,1747905043701,-481.3,0.00032876,5]
[361947194,1747905043711,-420.0,0.00032876,5]
[361947196,1747905043720,-420.0,0.00032876,5]
[361947197,1747905043729,-659.29,0.00032876,5]
[361947198,1747905043738,-150.15413755,0.00032876,5]
[361947199,1747905043747,-280.28312661,0.00032876,5]
[361947200,1747905043757,-501.12,0.00032876,5]
[361947201,1747905043766,-1330.46527694,0.00032876,5]
[361947202,1747905043797,-141.98472306,0.00032876,5]
[361947203,1747905043807,-559.87,0.00032876,5]
[361947204,1747905043816,-815.21,0.00032876,5]
[361947205,1747905043825,-1513.26,0.00032876,5]
[361947206,1747905043835,-190.04990764,0.00032876,5]
[361947207,1747905043844,-420.98543225,0.00032876,5]
[361947208,1747905043853,-455.97667447,0.00032876,5]
[361947209,1747905043862,-420.0,0.00032876,5]
[361947210,1747905043872,-420.0,0.00032876,5]
[361947212,1747905043881,-420.0,0.00032876,5]
[361947213,1747905043891,-556.85,0.00032876,5]
[361947214,1747905043900,-558.33,0.00032876,5]
[361947215,1747905043909,-1376.5,0.00032876,5]
[361947217,1747905043919,-450.0,0.00032876,5]
[361947219,1747905043928,-420.0,0.00032876,5]
[361947221,1747905043937,-420.0,0.00032876,5]
[361947223,1747905043946,-476.78,0.00032876,5]
[361947225,1747905043955,-1204.58,0.00032876,5]
[361947227,1747905043964,-860.43,0.00032876,5]
[361947228,1747905043974,-420.0,0.00032876,5]
[361947230,1747905043983,-1180.18,0.00032876,5]
[361947232,1747905043992,-420.0,0.00032876,5]
[361947234,1747905044001,-927.84,0.00032876,5]
[361947236,1747905044010,-956.38,0.00032876,5]
[361947238,1747905044019,-567.63,0.00032876,5]
[361947240,1747905044029,-420.0,0.00032876,5]
[361947242,1747905044039,-420.0,0.00032876,5]
[361947244,1747905044048,-420.0,0.00032876,5]
[361947246,1747905044057,-1021.72,0.00032876,5]
[361947248,1747905044066,-420.0,0.00032876,5]
[361947250,1747905044075,-428.14,0.00032876,5]
[361947252,1747905044085,-420.0,0.00032876,5]
[361947254,1747905044094,-528.84,0.00032876,5]
[361947256,1747905044103,-421.48814708,0.00032876,5]
[361947258,1747905044112,-420.0,0.00032876,5]
[361947260,1747905044122,-420.0,0.00032876,5]
[361947262,1747905044130,-420.0,0.00032876,5]
[361947264,1747905044139,-454.25,0.00032876,5]
[361947266,1747905044148,-420.0,0.00032876,5]
[361947268,1747905044158,-420.0,0.00032876,5]
[361947270,1747905044169,-420.0,0.00032876,5]
[361947272,1747905044178,-420.0,0.00032876,5]
[361947274,1747905044187,-678.19,0.00032876,5]
[361947276,1747905044197,-420.0,0.00032876,5]
[361947278,1747905044208,-420.0,0.00032876,5]
[361947280,1747905044218,-1253.55,0.00032876,5]
[361947282,1747905044227,-605.61,0.00032876,5]
[361947284,1747905044237,-420.0,0.00032876,5]
[361947286,1747905044248,-420.0,0.00032876,5]
[361947287,1747905044257,-988.72,0.00032876,5]
[361947289,1747905044266,-420.0,0.00032876,5]
[361947291,1747905044275,-548.21,0.00032876,5]
[361947293,1747905044284,-437.66,0.00032876,5]
[361947295,1747905044293,-420.0,0.00032876,5]
[361947297,1747905044303,-832.97,0.00032876,5]
[361947299,1747905044312,-420.0,0.00032876,5]
[361947300,1747905044323,-420.0,0.00032876,5]
[361947301,1747905044333,-420.0,0.00032876,5]
[361947302,1747905044342,-588.62,0.00032876,5]
[361947303,1747905044353,-867.11,0.00032876,5]
[361947304,1747905044362,-420.0,0.00032876,5]
[361947305,1747905044373,-1230.2,0.00032876,5]
[361947306,1747905044393,-420.0,0.00032876,5]
[361947307,1747905044405,-553.97149733,0.00032876,5]
[361947308,1747905044416,-420.0,0.00032876,5]
[361947309,1747905044427,-420.0,0.00032876,5]
[361947310,1747905044444,-420.0,0.00032876,5]
[361947311,1747905044455,-420.0,0.00032876,5]
[361947312,1747905044464,-420.0,0.00032876,5]
[361947314,1747905044474,-420.0,0.00032876,5]
[361947316,1747905044484,-420.0,0.00032876,5]
[361947318,1747905044493,-605.64,0.00032876,5]
[361947320,1747905044503,-557.06678363,0.00032876,5]
[361947322,1747905044513,-495.85,0.00032876,5]
[361947324,1747905044523,-420.0,0.00032876,5]
[361947326,1747905044532,-420.0,0.00032876,5]
[361947328,1747905044542,-514.03,0.00032876,5]
[361947330,1747905044551,-424.37,0.00032876,5]
[361947332,1747905044561,-420.0,0.00032876,5]
[361947334,1747905044570,-1244.18,0.00032876,5]
[361947336,1747905044580,-420.0,0.00032876,5]
[361947338,1747905044590,-420.0,0.00032876,5]
[361947340,1747905044600,-420.0,0.00032876,5]
[361947342,1747905044609,-420.0,0.00032876,5]
[361947344,1747905044619,-483.52,0.00032876,5]
[361947346,1747905044629,-502.99,0.00032876,5]
[361947348,1747905044640,-420.0,0.00032876,5]
[361947350,1747905044650,-420.0,0.00032876,5]
[361947352,1747905044659,-707.16,0.00032876,5]
[361947354,1747905044669,-420.0,0.00032876,5]
[361947356,1747905044678,-476.29861515,0.00032876,5]
[361947358,1747905044688,-420.0,0.00032876,5]
[361947360,1747905044698,-424.99059717,0.00032876,5]
[361947362,1747905044707,-420.0,0.00032876,5]
[361947364,1747905044717,-572.41,0.00032876,5]
[361947366,1747905044726,-875.5,0.00032876,5]
[361947368,1747905044736,-510.78,0.00032876,5]
[361947370,1747905044745,-420.0,0.00032876,5]
[361947372,1747905044755,-420.0,0.00032876,5]
[361947374,1747905044765,-953.83,0.00032876,5]
[361947376,1747905044775,-847.85,0.00032876,5]
[361947378,1747905044785,-420.0,0.00032876,5]
[361947380,1747905044794,-420.0,0.00032876,5]
[361947382,1747905044803,-954.64,0.00032876,5]
[361947384,1747905044812,-420.0,0.00032876,5]
[361947386,1747905044822,-449.91,0.00032876,5]
[361947388,1747905044831,-486.86784976,0.00032876,5]
[361947390,1747905044841,-420.0,0.00032876,5]
[361947391,1747905044850,-420.0,0.00032876,5]
[361947393,1747905044860,-420.0,0.00032876,5]
[361947395,1747905044869,-420.0,0.00032876,5]
[361947397,1747905044879,-420.0,0.00032876,5]
[361947399,1747905044888,-420.0,0.00032876,5]
[361947401,1747905044898,-493.67,0.00032876,5]
[361947403,1747905044907,-699.29,0.00032876,5]
[361947405,1747905044916,-423.53246787,0.00032876,5]
[361947407,1747905044926,-558.34,0.00032876,5]
[361947409,1747905044936,-420.0,0.00032876,5]
[361947411,1747905044945,-420.0,0.00032876,5]
[361947413,1747905044955,-632.33,0.00032876,5]
[361947415,1747905044964,-420.0,0.00032876,5]
[361947417,1747905044974,-420.0,0.00032876,5]
[361947419,1747905044983,-496.68,0.00032876,5]
[361947421,1747905044992,-420.0,0.00032876,5]
[361947423,1747905045003,-829.33,0.00032876,5]
[361947425,1747905045011,-547.07368678,0.00032876,5]
[361947427,1747905045021,-1252.43,0.00032876,5]
[361947429,1747905045030,-817.29,0.00032876,5]
[361947431,1747905045040,-1284.0,0.00032876,5]
[361947433,1747905045049,-420.0,0.00032876,5]
[361947435,1747905045059,-786.13,0.00032876,5]
[361947437,1747905045068,-744.39,0.00032876,5]
[361947439,1747905045078,-457.39,0.00032876,5]
[361947441,1747905045087,-420.0,0.00032876,5]
[361947443,1747905045096,-420.0,0.00032876,5]
[361947445,1747905045106,-420.0,0.00032876,5]
[361947446,1747905045115,-420.0,0.00032876,5]
[361947449,1747905045125,-703.71,0.00032876,5]
[361947450,1747905045134,-706.93,0.00032876,5]
[361947452,1747905045143,-420.0,0.00032876,5]
[361947454,1747905045154,-1361.17,0.00032876,5]
[361947456,1747905045166,-420.0,0.00032876,5]
[361947458,1747905045177,-1111.33,0.00032876,5]
[361947460,1747905045187,-604.45,0.00032876,5]
[361947462,1747905045196,-420.0,0.00032876,5]
[361947464,1747905045207,-675.81,0.00032876,5]
[361947466,1747905045216,-919.89,0.00032876,5]
[361947468,1747905045225,-1395.97,0.00032876,5]
[361947470,1747905045235,-420.0,0.00032876,5]
[361947472,1747905045244,-420.0,0.00032876,5]
[361947474,1747905045254,-458.45,0.00032876,5]
[361947476,1747905045265,-481.91,0.00032876,5]
[361947478,1747905045274,-420.0,0.00032876,5]
[361947480,1747905045283,-420.0,0.00032876,5]
[361947482,1747905045292,-549.97,0.00032876,5]
[361947484,1747905045302,-420.0,0.00032876,5]
[361947486,1747905045311,-420.0,0.00032876,5]
[361947488,1747905045320,-1537.71,0.00032876,5]
[361947490,1747905045330,-420.0,0.00032876,5]
[361947492,1747905045340,-420.0,0.00032876,5]
[361947494,1747905045349,-420.0,0.00032876,5]
[361947496,1747905045359,-420.0,0.00032876,5]
[361947498,1747905045368,-420.0,0.00032876,5]
[361947500,1747905045377,-437.88,0.00032876,5]
[361947502,1747905045387,-421.47930061,0.00032876,5]
[361947503,1747905045396,-619.61,0.00032876,5]
[361947505,1747905045405,-420.0,0.00032876,5]
[361947507,1747905045415,-420.0,0.00032876,5]
[361947509,1747905045425,-420.0,0.00032876,5]
[361947511,1747905045434,-572.79,0.00032876,5]
[361947513,1747905045444,-1207.27,0.00032876,5]
[361947515,1747905045454,-420.0,0.00032876,5]
[361947517,1747905045464,-420.0,0.00032876,5]
[361947519,1747905045474,-523.99,0.00032876,5]
[361947521,1747905045483,-1269.61,0.00032876,5]
[361947551,1747905045791,-420.0,0.00032876,5]
[361947553,1747905045802,-420.0,0.00032876,5]
[361947555,1747905045811,-420.0,0.00032876,5]
[361947557,1747905045821,-719.35,0.00032876,5]
[361947559,1747905045830,-560.0,0.00032876,5]
[361947561,1747905045840,-1109.44,0.00032876,5]
[361947563,1747905045849,-1748.57,0.00032876,5]
[361947564,1747905045858,-1090.43,0.00032876,5]
[361947566,1747905045869,-420.0,0.00032876,5]
[361947568,1747905045878,-420.0,0.00032876,5]
[361947570,1747905045888,-147.40816928,0.00032876,5]
[361947576,1747905045941,-276.20176028,0.00032876,5]
[361947577,1747905045951,-239.78345832,0.00032876,5]
[361947578,1747905045960,-189.06556656,0.00032876,5]
[361947579,1747905045970,-420.0,0.00032876,5]
[361947580,1747905045979,-420.0,0.00032876,5]
[361947581,1747905045989,-434.73,0.00032876,5]
[361947582,1747905045999,-809.91,0.00032876,5]
[361947583,1747905046009,-374.51321083,0.00032876,5]
[361947584,1747905046018,-423.29,0.00032876,5]
[361947586,1747905046028,-731.21,0.00032876,5]
[361947588,1747905046039,-1502.21,0.00032876,5]
[361947589,1747905046049,-489.14,0.00032876,5]
[361947590,1747905046058,-420.0,0.00032876,5]
[361947591,1747905046069,-420.0,0.00032876,5]
[361947592,1747905046078,-420.0,0.00032876,5]
[361947593,1747905046088,-420.0,0.00032876,5]
[361947594,1747905046097,-420.0,0.00032876,5]
[361947596,1747905046106,-730.42,0.00032876,5]
[361947598,1747905046116,-541.47,0.00032876,5]
[361947600,1747905046125,-420.0,0.00032876,5]
[361947602,1747905046135,-420.0,0.00032876,5]
[361947604,1747905046145,-816.42,0.00032876,5]
[361947606,1747905046154,-420.0,0.00032876,5]
[361947608,1747905046167,-928.19,0.00032876,5]
[361947610,1747905046177,-420.0,0.00032876,5]
[361947612,1747905046186,-500.0,0.00032876,5]
[361947614,1747905046196,-500.0,0.00032876,5]
[361947616,1747905046208,-500.0,0.00032876,5]
[361947618,1747905046217,-261.2,0.00032876,5]
[361947620,1747905046227,-420.0,0.00032876,5]
[361947622,1747905046236,-420.0,0.00032876,5]
[361947624,1747905046247,-420.0,0.00032876,5]
[361947626,1747905046257,-1007.4,0.00032876,5]
[361947628,1747905046266,-1111.99,0.00032876,5]
[361947630,1747905046276,-442.52,0.00032876,5]
[361947631,1747905046285,-420.0,0.00032876,5]
[361947633,1747905046294,-420.0,0.00032876,5]
[361947635,1747905046303,-537.33689022,0.00032876,5]
[361947637,1747905046314,-1097.16,0.00032876,5]
[361947639,1747905046325,-1258.08,0.00032876,5]
[361947641,1747905046334,-790.2,0.00032876,5]
[361947643,1747905046343,-420.0,0.00032876,5]
[361947645,1747905046353,-420.0,0.00032876,5]
[361947647,1747905046362,-420.0,0.00032876,5]
[361947649,1747905046372,-477.6,0.00032876,5]
[361947651,1747905046381,-618.54,0.00032876,5]
[361947652,1747905046390,-420.0,0.00032876,5]
[361947654,1747905046400,-420.0,0.00032876,5]
[361947656,1747905046409,-1528.65,0.00032876,5]
[361947658,1747905046419,-1238.09,0.00032876,5]
[361947660,1747905046433,-420.0,0.00032876,5]
[361947662,1747905046443,-770.22,0.00032876,5]
[361947664,1747905046453,-420.0,0.00032876,5]
[361947666,1747905046462,-420.0,0.00032876,5]
[361947668,1747905046472,-420.0,0.00032876,5]
[361947670,1747905046481,-786.4,0.00032876,5]
[361947672,1747905046491,-420.0,0.00032876,5]
[361947674,1747905046501,-463.9,0.00032876,5]
[361947676,1747905046510,-420.0,0.00032876,5]
[361947678,1747905046520,-420.0,0.00032876,5]
[361947680,1747905046530,-738.06,0.00032876,5]
[361947682,1747905046539,-423.68,0.00032876,5]
[361947684,1747905046549,-420.0,0.00032876,5]
[361947686,1747905046559,-82.56929341,0.00032876,5]
[361947689,1747905046575,-757.52070659,0.00032876,5]
[361947691,1747905046584,-603.13,0.00032876,5]
[361947693,1747905046593,-916.4,0.00032876,5]
[361947695,1747905046603,-420.0,0.00032876,5]
[361947697,1747905046612,-499.36,0.00032876,5]
[361947699,1747905046623,-420.0,0.00032876,5]
[361947701,1747905046633,-420.0,0.00032876,5]
[361947703,1747905046642,-420.0,0.00032876,5]
[361947705,1747905046652,-843.58,0.00032876,5]
[361947707,1747905046661,-420.0,0.00032876,5]
[361947709,1747905046670,-420.0,0.00032876,5]
[361947711,1747905046679,-316.25354412,0.00032876,5]
[361947713,1747905046689,-162.3490365,0.00032876,5]
[361947714,1747905046698,-420.0,0.00032876,5]
[361947716,1747905046710,-431.51145443,0.00032876,5]
[361947718,1747905046720,-1450.72,0.00032876,5]
[361947720,1747905046730,-1404.26,0.00032876,5]
[361947722,1747905046739,-420.0,0.00032876,5]
[361947724,1747905046749,-420.0,0.00032876,5]
[361947726,1747905046758,-420.0,0.00032876,5]
[361947728,1747905046768,-818.38,0.00032876,5]
[361947730,1747905046778,-420.0,0.00032876,5]
[361947732,1747905046787,-420.0,0.00032876,5]
[361947734,1747905046797,-420.0,0.00032876,5]
[361947736,1747905046806,-660.74,0.00032876,5]
[361947738,1747905046816,-1167.2,0.00032876,5]
[361947741,1747905046826,-1011.47,0.00032876,5]
[361947743,1747905046835,-420.0,0.00032876,5]
[361947745,1747905046845,-613.9,0.00032876,5]
[361947747,1747905046854,-1338.81,0.00032876,5]
[361947749,1747905046863,-639.61,0.00032876,5]
[361947751,1747905046872,-420.0,0.00032876,5]
[361947753,1747905046882,-565.0,0.00032876,5]
[361947755,1747905046891,-1002.71,0.00032876,5]
[361947757,1747905046901,-779.23,0.00032876,5]
[361947759,1747905046910,-420.0,0.00032876,5]
[361947761,1747905046920,-420.0,0.00032876,5]
[361947763,1747905046930,-420.0,0.00032876,5]
[361947765,1747905046939,-740.81,0.00032876,5]
[361947767,1747905046952,-1062.02,0.00032876,5]
[361947769,1747905046961,-610.78,0.00032876,5]
[361947771,1747905046970,-1198.24,0.00032876,5]
[361947772,1747905046980,-420.0,0.00032876,5]
[361947774,1747905046989,-479.08,0.00032876,5]
[361947777,1747905047000,-420.0,0.00032876,5]
[361947778,1747905047010,-420.0,0.00032876,5]
[361947780,1747905047019,-192.28955175,0.00032876,5]
[361947782,1747905047031,-547.9,0.00032876,5]
[361947784,1747905047040,-420.0,0.00032876,5]
[361947786,1747905047049,-420.0,0.00032876,5]
[361947788,1747905047058,-420.0,0.00032876,5]
[361947790,1747905047067,-1541.01,0.00032876,5]
[361947792,1747905047077,-420.0,0.00032876,5]
[361947794,1747905047087,-759.05,0.00032876,5]
[361947796,1747905047096,-488.02,0.00032876,5]
[361947798,1747905047106,-420.0,0.00032876,5]
[361947800,1747905047115,-420.0,0.00032876,5]
[361947801,1747905047124,-1076.26,0.00032876,5]
[361947803,1747905047133,-420.0,0.00032876,5]
[361947805,1747905047143,-420.0,0.00032876,5]
[361947807,1747905047153,-420.0,0.00032876,5]
[361947809,1747905047164,-1247.89,0.00032876,14]
[361947811,1747905047177,-1247.89,0.00032876,14]
[361947813,1747905047186,-1247.89,0.00032876,14]
[361947815,1747905047195,-1247.89,0.00032876,14]
[361947817,1747905047207,-1144.2,0.00032876,5]
[361947819,1747905047216,-1247.89,0.00032876,14]
[361947821,1747905047226,-420.0,0.00032876,5]
[361947823,1747905047235,-1247.89,0.00032876,14]
[361947825,1747905047245,-1247.89,0.00032876,14]
[361947827,1747905047255,-1247.89,0.00032876,14]
[361947829,1747905047264,-1247.89,0.00032876,14]
[361947831,1747905047273,-1247.89,0.00032876,14]
[361947833,1747905047282,-1247.89,0.00032876,14]
[361947835,1747905047291,-1247.89,0.00032876,14]
[361947837,1747905047301,-1247.89,0.00032876,14]
[361947839,1747905047310,-420.0,0.00032876,5]
[361947841,1747905047319,-1260.23,0.00032876,5]
[361947843,1747905047329,-1247.89,0.00032876,14]
[361947845,1747905047338,-1247.89,0.00032876,14]
[361947847,1747905047347,-420.0,0.00032876,5]
[361947849,1747905047356,-1247.89,0.00032876,14]
[361947850,1747905047365,-1247.89,0.00032876,14]
[361947852,1747905047375,-1247.89,0.00032876,14]
[361947854,1747905047385,-1247.89,0.00032876,14]
[361947856,1747905047395,-1247.89,0.00032876,14]
[361947859,1747905047404,-470.82,0.00032876,5]
[361947860,1747905047414,-1247.89,0.00032876,14]
[361947862,1747905047423,-1247.89,0.00032876,14]
[361947864,1747905047433,-1247.89,0.00032876,14]
[361947866,1747905047442,-1247.91053824,0.00032876,14]
[361947868,1747905047451,-679.28,0.00032876,5]
[361947870,1747905047460,-420.0,0.00032876,5]
[361947872,1747905047470,-380.11639417,0.00032876,5]
[361947874,1747905047479,-542.81,0.00032876,5]
[361947876,1747905047488,-420.0,0.00032876,5]
[361947878,1747905047497,-420.0,0.00032876,5]
[361947880,1747905047506,-2457.93,0.00032876,5]
[361947882,1747905047515,-420.0,0.00032876,5]
[361947884,1747905047524,-420.0,0.00032876,5]
[361947886,1747905047533,-457.49,0.00032876,5]
[361947888,1747905047543,-420.0,0.00032876,5]
[361947890,1747905047551,-1185.32,0.00032876,5]
[361947892,1747905047561,-420.0,0.00032876,5]
[361947894,1747905047571,-429.25,0.00032876,5]
[361947895,1747905047584,-965.62,0.00032876,5]
[361947897,1747905047600,-420.0,0.00032876,5]
[361947899,1747905047621,-420.0,0.00032876,5]
[361947901,1747905047633,-1338.71,0.00032876,5]
[361947903,1747905047643,-420.0,0.00032876,5]
[361947905,1747905047653,-420.0,0.00032876,5]
[361947907,1747905047664,-420.0,0.00032876,5]
[361947909,1747905047675,-552.08,0.00032876,5]
[361947911,1747905047686,-1242.21,0.00032876,5]
[361947913,1747905047695,-420.0,0.00032876,5]
[361947915,1747905047706,-420.0,0.00032876,5]
[361947917,1747905047716,-420.0,0.00032876,5]
[361947919,1747905047725,-420.0,0.00032876,5]
[361947921,1747905047735,-443.83,0.00032876,5]
[361947923,1747905047745,-1294.78,0.00032876,5]
[361947925,1747905047754,-420.0,0.00032876,5]
[361947927,1747905047764,-965.9,0.00032876,5]
[361947929,1747905047773,-420.0,0.00032876,5]
[361947931,1747905047783,-420.0,0.00032876,5]
[361947933,1747905047792,-420.0,0.00032876,5]
[361947935,1747905047802,-1201.46,0.00032876,5]
[361947937,1747905047811,-939.79,0.00032876,5]
[361947939,1747905047820,-674.27,0.00032876,5]
[361947941,1747905047830,-420.0,0.00032876,5]
[361947943,1747905047839,-420.0,0.00032876,5]
[361947945,1747905047848,-420.0,0.00032876,5]
[361947947,1747905047858,-391.99,0.00032876,5]
[361947949,1747905047867,-420.0,0.00032876,5]
[361947951,1747905047876,-420.0,0.00032876,5]
[361947953,1747905047886,-423.83439734,0.00032876,5]
[361947955,1747905047895,-489.11,0.00032876,5]
[361947957,1747905047904,-1844.5,0.00032876,5]
[361947959,1747905047914,-688.08,0.00032876,5]
[361947961,1747905047923,-572.51,0.00032876,5]
[361947963,1747905047934,-420.0,0.00032876,5]
[361947965,1747905047943,-420.0,0.00032876,5]
[361947967,1747905047953,-420.0,0.00032876,5]
[361947969,1747905047963,-592.62,0.00032876,5]
[361947971,1747905047972,-420.0,0.00032876,5]
[361947973,1747905047981,-1015.36,0.00032876,5]
[361947975,1747905047991,-420.0,0.00032876,5]
[361947977,1747905048000,-420.0,0.00032876,5]
[361947979,1747905048009,-908.46,0.00032876,5]
[361947981,1747905048018,-420.0,0.00032876,5]
[361947983,1747905048028,-420.0,0.00032876,5]
[361947984,1747905048037,-420.0,0.00032876,5]
[361947986,1747905048046,-1156.59,0.00032876,5]
[361947988,1747905048056,-420.0,0.00032876,5]
[361947990,1747905048066,-1217.7,0.00032876,5]
[361947992,1747905048075,-420.0,0.00032876,5]
[361947994,1747905048085,-924.14,0.00032876,5]
[361947996,1747905048095,-934.04,0.00032876,5]
[361947998,1747905048105,-820.54,0.00032876,5]
[361948000,1747905048115,-420.0,0.00032876,5]
[361948002,1747905048125,-572.74,0.00032876,5]
[361948003,1747905048134,-1122.11,0.00032876,5]
[361948004,1747905048144,-420.0,0.00032876,5]
[361948005,1747905048154,-420.0,0.00032876,5]
[361948006,1747905048168,-1435.02,0.00032876,5]
[361948007,1747905048177,-420.0,0.00032876,5]
[361948008,1747905048187,-420.0,0.00032876,5]
[361948009,1747905048196,-420.0,0.00032876,5]
[361948010,1747905048207,-828.07,0.00032876,5]
[361948011,1747905048216,-2265.71,0.00032876,5]
[361948013,1747905048226,-1266.4,0.00032876,5]
[361948014,1747905048236,-622.89,0.00032876,5]
[361948016,1747905048247,-1031.68,0.00032876,5]
[361948018,1747905048258,-420.0,0.00032876,5]
[361948020,1747905048267,-510.09,0.00032876,5]
[361948022,1747905048277,-988.51,0.00032876,5]
[361948024,1747905048287,-420.0,0.00032876,2]
[361948026,1747905048297,-1126.17,0.00032876,5]
[361948028,1747905048307,-427.89578801,0.00032876,5]
[361948030,1747905048317,-420.0,0.00032876,5]
[361948032,1747905048327,-443.66,0.00032876,5]
[361948034,1747905048337,-647.16,0.00032876,5]
[361948036,1747905048346,-1358.44,0.00032876,5]
[361948038,1747905048357,-860.62,0.00032876,5]
[361948040,1747905048367,-1200.25,0.00032876,5]
[361948042,1747905048378,-464.81,0.00032876,5]
[361948044,1747905048388,-881.23,0.00032876,5]
[361948046,1747905048398,-674.37,0.00032876,5]
[361948048,1747905048408,-420.0,0.00032876,5]
[361948050,1747905048418,-916.38,0.00032876,5]
[361948052,1747905048428,-734.45,0.00032876,5]
[361948054,1747905048439,-420.0,0.00032876,5]
[361948055,1747905048451,-533.84,0.00032876,5]
[361948057,1747905048461,-420.0,0.00032876,5]
[361948059,1747905048471,-420.0,0.00032876,5]
[361948061,1747905048481,-421.91968567,0.00032876,5]
[361948063,1747905048492,-420.0,0.00032876,5]
[361948066,1747905048503,-1186.34,0.00032876,5]
[361948067,1747905048513,-420.0,0.00032876,5]
[361948070,1747905048524,-890.57,0.00032876,5]
[361948072,1747905048534,-1122.48,0.00032876,5]
[361948073,1747905048544,-195.51934814,0.00032876,5]
[361948075,1747905048554,-420.0,0.00032876,5]
[361948077,1747905048564,-420.79260174,0.00032876,5]
[361948079,1747905048573,-420.0,0.00032876,5]
[361948081,1747905048583,-432.53,0.00032876,5]
[361948083,1747905048593,-420.0,0.00032876,5]
[361948085,1747905048603,-420.0,0.00032876,5]
[361948087,1747905048613,-420.0,0.00032876,5]
[361948089,1747905048623,-482.01,0.00032876,5]
[361948091,1747905048634,-420.0,0.00032876,5]
[361948093,1747905048645,-420.0,0.00032876,5]
[361948095,1747905048654,-1003.65,0.00032876,5]
[361948097,1747905048664,-420.0,0.00032876,5]
[361948099,1747905048673,-947.69,0.00032876,5]
[361948101,1747905048683,-1303.41,0.00032876,5]
[361948103,1747905048693,-552.98,0.00032876,5]
[361948105,1747905048703,-420.0,0.00032876,5]
[361948107,1747905048713,-606.34,0.00032876,5]
[361948109,1747905048722,-446.05,0.00032876,5]
[361948111,1747905048731,-428.95,0.00032876,5]
[361948113,1747905048741,-1121.32,0.00032876,5]